bitfinex/quotes_ETHUSD_20251111
["timestamp","ask_amount","ask_price","bid_price","bid_amount"]
[1762877549616,0.01,3482.9,3482.7,13.86249459]
[1762877549782,0.01,3482.9,3482.7,14.34829459]
[1762877550868,0.01,3482.9,3482.7,7.06183599]
[1762877551063,0.01,3482.9,3482.7,14.35029459]
[1762877551269,0.002,3483.1,3483.0,4.41033294]
[1762877551492,0.002,3483.1,3483.0,8.71832295]
[1762877551710,0.002,3483.1,3483.0,11.66220295]
[1762877551889,0.002,3483.1,3483.0,8.49812295]
[1762877552212,0.002,3483.1,3483.0,15.78658155]
[1762877552384,0.002,3483.1,3483.0,21.36751955]
[1762877552582,0.002,3483.1,3483.0,15.08058155]
[1762877552768,0.002,3483.1,3483.0,15.78658155]
[1762877553279,0.002,3483.1,3483.0,20.14810255]
[1762877554912,0.002,3483.1,3483.0,15.78658155]
[1762877556435,0.002,3483.1,3483.0,15.08058155]
[1762877556614,0.002,3483.1,3483.0,15.78658155]
[1762877556810,0.002,3483.1,3483.0,21.10890555]
[1762877557036,0.002,3483.1,3483.0,15.78658155]
[1762877557331,0.002,3483.1,3483.0,19.50046655]
[1762877557552,0.002,3483.1,3483.0,19.06935455]
[1762877558131,0.002,3483.1,3483.0,15.78658155]
[1762877558437,0.002,3483.1,3483.0,15.78558155]
[1762877559729,0.002,3483.1,3483.0,26.56792255]
[1762877560058,0.01000001,3483.9,3483.8,10.3497726]
[1762877560240,0.01000001,3483.9,3483.8,12.82870203]
[1762877560422,0.01000001,3483.9,3483.8,11.67180203]
[1762877560623,0.01000001,3483.9,3483.8,12.37580203]
[1762877560828,0.67210001,3483.9,3483.8,3.767314]
[1762877561041,0.67210001,3483.9,3483.8,4.471314]
[1762877561244,1.12880001,3483.9,3483.8,0.49138116]
[1762877561662,1.12880001,3483.9,3483.8,0.704]
[1762877562244,1.12880001,3483.9,3483.8,1.19538116]
[1762877563458,1.12880001,3483.9,3483.8,4.06581]
[1762877564236,0.67210001,3483.9,3483.8,4.06581]
[1762877564432,0.67210001,3483.9,3483.8,4.471314]
[1762877564633,0.01000001,3483.9,3483.8,5.20549745]
[1762877565661,0.47940001,3483.9,3483.8,0.49138116]
[1762877565840,1.12880001,3483.9,3483.8,4.06581]
[1762877566164,1.12880001,3483.9,3483.8,1.19538116]
[1762877566540,1.12880001,3483.9,3483.8,3.36181]
[1762877566734,1.12880001,3483.9,3483.8,4.06581]
[1762877567081,0.67200001,3483.9,3483.8,4.06581]
[1762877567428,0.20260001,3483.9,3483.8,4.06581]
[1762877567975,0.67190001,3483.9,3483.8,4.06581]
[1762877568325,0.00920001,3483.9,3483.8,4.471314]
[1762877568530,0.00920001,3483.9,3483.8,6.31664324]
[1762877569385,0.00920001,3483.9,3483.8,5.61264324]
[1762877569591,0.00920001,3483.9,3483.8,4.470314]
[1762877570386,0.00920001,3483.9,3483.8,3.767314]
[1762877570549,0.00920001,3483.9,3483.8,4.470314]
[1762877571547,0.00920001,3483.9,3483.8,4.43183284]
[1762877571745,0.00920001,3483.9,3483.8,5.409014]
[1762877572075,0.00920001,3483.9,3483.8,6.40941324]
[1762877572257,0.00920001,3483.9,3483.8,5.95651324]
[1762877573088,0.44250001,3483.9,3483.8,4.471314]
[1762877573279,0.63510001,3483.9,3483.8,4.471314]
[1762877573695,0.00920001,3483.9,3483.8,4.471314]
[1762877574656,0.00920001,3483.9,3483.8,3.767314]
[1762877574991,0.00920001,3483.9,3483.8,4.471314]
[1762877575192,1.12770001,3483.9,3483.8,4.470314]
[1762877575756,0.63510001,3483.9,3483.8,4.470314]
[1762877575955,0.63510001,3483.9,3483.8,3.767314]
[1762877576178,0.63510001,3483.9,3483.8,4.470314]
[1762877577224,0.00920001,3483.9,3483.8,4.470314]
[1762877577734,0.00920001,3483.9,3483.8,6.35634324]
[1762877577934,0.00920001,3483.9,3483.8,5.86164324]
[1762877578082,0.00920001,3483.9,3483.8,5.15964324]
[1762877578432,1.12820001,3483.9,3483.8,4.470314]
[1762877578735,1.12820001,3483.9,3483.8,4.06381]
[1762877578877,0.68610001,3483.9,3483.8,4.06381]
[1762877579224,0.68610001,3483.9,3483.8,1.19338116]
[1762877579428,1.12820001,3483.9,3483.8,4.06381]
[1762877579627,1.12820001,3483.9,3483.8,3.36181]
[1762877579784,0.68610001,3483.9,3483.8,4.06381]
[1762877580216,0.00920001,3483.9,3483.8,6.31469263]
[1762877580417,0.00920001,3483.9,3483.8,5.82099263]
[1762877580723,0.00920001,3483.9,3483.8,6.79319263]
[1762877582085,0.00920001,3483.9,3483.8,5.82099263]
[1762877582399,0.00920001,3483.9,3483.8,5.61269263]
[1762877582611,0.00920001,3483.9,3483.8,6.31469263]
[1762877582798,0.00920001,3483.9,3483.8,6.31569263]
[1762877583000,0.00920001,3483.9,3483.8,6.79419263]
[1762877583311,0.01120001,3483.9,3483.8,6.79419263]
[1762877583516,0.01120001,3483.9,3483.8,5.61369263]
[1762877583825,0.01120001,3483.9,3483.8,6.31469263]
[1762877584048,0.01120001,3483.9,3483.8,5.82099263]
[1762877585216,0.66160001,3483.9,3483.8,4.469314]
[1762877585408,0.01120001,3483.9,3483.8,4.469314]
[1762877586019,0.01120001,3483.9,3483.8,3.768314]
[1762877586224,0.01120001,3483.9,3483.8,4.469314]
[1762877586418,0.48900001,3483.9,3483.8,4.469314]
[1762877587758,0.01120001,3483.9,3483.8,4.468314]
[1762877587960,0.48870001,3483.9,3483.8,4.468314]
[1762877588158,0.01120001,3483.9,3483.8,5.69589717]
[1762877588470,0.01120001,3483.9,3483.8,6.17439717]
[1762877588755,1.13000001,3483.9,3483.8,1.19338116]
[1762877588911,1.13000001,3483.9,3483.8,0.49238116]
[1762877589106,0.66160001,3483.9,3483.8,4.06381]
[1762877589361,0.01120001,3483.9,3483.8,4.06381]
[1762877589510,1.13000001,3483.9,3483.8,4.06381]
[1762877590339,0.66180001,3483.9,3483.8,4.06381]
[1762877590838,1.13000001,3483.9,3483.8,4.06381]
[1762877591050,1.13000001,3483.9,3483.8,0.49238116]
[1762877591248,1.13000001,3483.9,3483.8,0.701]
[1762877591664,1.13000001,3483.9,3483.8,3.57142884]
[1762877591868,1.13000001,3483.9,3483.8,1.19238116]
[1762877592181,1.12920001,3483.9,3483.8,1.19238116]
[1762877592393,1.12920001,3483.9,3483.8,4.06281]
[1762877592600,0.66100001,3483.9,3483.8,4.06281]
[1762877593037,1.12920001,3483.9,3483.8,0.49238116]
[1762877593242,1.12920001,3483.9,3483.8,1.19238116]
[1762877593678,1.12920001,3483.9,3483.8,0.001]
[1762877593888,3.99954646,3483.9,3483.8,0.701]
[1762877594037,3.99954646,3483.9,3483.8,0.001]
[1762877594038,5.13328726,3483.9,3483.8,0.001]
[1762877594237,5.13328726,3483.9,3483.8,0.701]
[1762877594443,5.13328726,3483.9,3483.8,0.001]
[1762877594873,5.13328726,3483.9,3483.8,0.701]
[1762877595251,2.26294081,3483.9,3483.8,0.701]
[1762877595679,5.13328726,3483.9,3483.8,0.701]
[1762877595867,5.13328726,3483.9,3483.8,0.001]
[1762877596380,2.26294081,3483.9,3483.8,0.001]
[1762877596555,5.13328726,3483.9,3483.8,0.001]
[1762877596751,1.12920001,3483.9,3483.8,0.001]
[1762877596956,1.12920001,3483.9,3483.8,0.49238116]
[1762877597151,1.12920001,3483.9,3483.8,0.001]
[1762877597351,1.12920001,3483.9,3483.8,0.701]
[1762877597553,1.12920001,3483.9,3483.8,1.19238116]
[1762877597753,3.99954646,3483.9,3483.8,0.001]
[1762877597953,3.99954646,3483.9,3483.8,0.701]
[1762877598166,5.13328726,3483.9,3483.8,0.001]
[1762877599164,8.56294081,3483.9,3483.8,0.001]
[1762877599368,11.43328726,3483.9,3483.8,0.001]
[1762877599764,11.43328726,3483.9,3483.4,0.001]
[1762877599765,4.00441684,3483.5,3483.4,0.001]
[1762877599965,4.00991684,3483.5,3483.4,0.001]
[1762877600290,2.87108814,3483.0,3482.5,0.001]
[1762877600490,2.88098814,3483.0,3482.5,0.001]
[1762877600650,3.34948814,3483.0,3482.5,0.001]
[1762877600853,0.4784,3483.0,3482.5,0.001]
[1762877601054,3.34948814,3483.0,3482.6,0.7]
[1762877601254,0.4784,3483.0,3482.6,0.7]
[1762877601494,3.34948814,3483.0,3482.6,0.7]
[1762877601993,4.48322894,3483.0,3482.5,0.001]
[1762877602167,4.74755023,3483.0,3482.5,0.701]
[1762877602369,4.74755023,3483.0,3482.5,0.001]
[1762877602566,2.8714179,3482.6,3482.5,0.001]
[1762877602771,4.71177999,3482.6,3482.5,0.001]
[1762877602974,2.30886209,3482.6,3482.5,0.001]
[1762877603186,5.18027999,3482.6,3482.5,0.001]
[1762877605475,11.48027999,3482.6,3482.5,0.001]
[1762877606293,8.60886209,3482.6,3482.5,0.001]
[1762877606600,7.8760408,3482.6,3482.5,0.001]
[1762877607284,8.3476408,3482.6,3482.5,0.001]
[1762877607686,8.6116411,3482.6,3482.5,0.001]
[1762877608060,11.483059,3482.6,3482.5,0.001]
[1762877609566,8.1912411,3482.6,3482.5,0.001]
[1762877609766,8.3543408,3482.6,3482.5,0.001]
[1762877610105,11.48963057,3482.6,3482.5,0.7]
[1762877610269,11.48960472,3482.6,3482.5,0.001]
[1762877610808,4.00540607,3482.3,3482.2,0.001]
[1762877610976,10.57355209,3482.3,3482.2,0.001]
[1762877611161,11.04515209,3482.3,3482.2,0.001]
[1762877614376,6.3,3482.3,3482.2,4.04184774]
[1762877614616,0.1929,3482.9,3482.5,0.49138116]
[1762877615145,0.1929,3482.9,3482.7,3.36270279]
[1762877615417,1.1337408,3483.4,3482.5,2.87149394]
[1762877615418,0.4716,3483.5,3482.8,1.19038116]
[1762877615616,0.26435881,3483.4,3483.0,0.49138116]
[1762877615977,0.26435881,3483.4,3482.8,0.699]
[1762877616288,0.26355881,3483.4,3483.1,0.49138116]
[1762877616479,0.26355881,3483.4,3483.3,0.6544]
[1762877616682,0.01040001,3483.9,3483.8,3.36181]
[1762877616929,0.01040001,3483.9,3483.8,1.66048116]
[1762877617082,0.01040001,3483.9,3483.8,4.53091]
[1762877617282,0.01040001,3483.9,3483.8,4.06181]
[1762877617480,0.93910001,3483.9,3483.1,0.405504]
[1762877617685,0.93910001,3483.9,3483.7,3.36188513]
[1762877617983,0.01040001,3483.9,3483.8,4.06181]
[1762877618212,0.01040001,3483.9,3483.8,4.06081]
[1762877618395,0.01040001,3483.9,3483.8,0.699]
[1762877618597,0.50330001,3483.9,3483.8,0.699]
[1762877619315,1.13000001,3483.9,3482.8,0.1854]
[1762877619618,2.87052363,3483.7,3483.0,3.36240168]
[1762877619834,2.87052363,3483.7,3483.1,3.36238129]
[1762877620145,0.4716,3483.6,3483.2,0.699]
[1762877620338,3.34205065,3483.8,3483.3,0.699]
[1762877620640,0.4549,3483.3,3483.1,0.49138116]
[1762877620929,0.4716,3483.7,3483.2,1.19038116]
[1762877621222,0.4716,3483.6,3483.2,0.699]
[1762877621396,0.4549,3483.3,3483.2,0.699]
[1762877621796,0.9263,3483.3,3482.9,0.49138116]
[1762877621998,0.4714,3483.3,3483.0,0.699]
[1762877622198,0.4716,3483.2,3482.5,0.001]
[1762877622403,0.4716,3483.2,3482.6,0.699]
[1762877622605,0.4716,3483.2,3482.9,0.49138116]
[1762877622936,0.4716,3483.6,3482.6,0.699]
[1762877623223,3.34225139,3483.6,3483.0,2.87107919]
[1762877623520,0.4716,3483.6,3482.9,0.49138116]
[1762877623720,0.4716,3483.5,3483.0,0.699]
[1762877624319,3.34233241,3483.5,3483.0,0.699]
[1762877624530,0.4716,3483.5,3483.0,1.19038116]
[1762877624687,0.4716,3483.4,3483.0,1.19038116]
[1762877625120,0.4716,3483.4,3483.1,0.49138116]
[1762877625326,0.4549,3483.2,3482.5,0.001]
[1762877625524,0.0045,3483.1,3482.5,0.001]
[1762877625716,0.0045,3483.1,3482.6,1.19038116]
[1762877625913,0.4716,3483.0,3482.9,3.36255173]
[1762877626099,0.4716,3483.0,3482.9,0.49138116]
[1762877626300,0.4935,3483.0,3482.8,0.49138116]
[1762877626827,0.4935,3483.0,3482.9,3.36255173]
[1762877627038,0.0043,3482.7,3482.5,0.001]
[1762877627334,0.1929,3482.9,3482.5,0.001]
[1762877627335,0.4886,3482.6,3482.5,0.001]
[1762877627632,2.87093329,3483.2,3482.6,2.87140974]
[1762877627633,0.4716,3483.2,3482.6,2.87140974]
[1762877627845,0.4716,3483.5,3482.8,2.87122349]
[1762877628011,0.4716,3483.4,3482.8,2.87122349]
[1762877628327,0.26528813,3483.3,3482.8,2.87122349]
[1762877628532,0.26528813,3483.3,3482.9,2.87111626]
[1762877628827,0.4716,3483.4,3483.0,4.06146437]
[1762877629066,0.4716,3483.4,3483.1,3.57000546]
[1762877629355,2.87051709,3483.7,3483.2,0.49138116]
[1762877629573,0.26564072,3483.6,3483.1,1.19038116]
[1762877629848,0.26564072,3483.5,3483.2,0.49138116]
[1762877630151,0.26564072,3483.4,3483.2,2.87092328]
[1762877630347,6.3,3483.8,3483.1,0.699]
[1762877630569,0.4716,3483.6,3483.1,4.06138128]
[1762877630721,0.2657001,3483.5,3483.2,0.49138116]
[1762877630922,0.2657001,3483.4,3483.2,0.49138116]
[1762877631252,3.3421948,3483.6,3483.1,0.699]
[1762877631454,0.26560267,3483.5,3483.1,0.699]
[1762877631659,0.4549,3483.2,3482.7,0.49138116]
[1762877631959,0.4549,3483.2,3482.8,0.699]
[1762877632453,0.9263,3483.2,3482.9,0.699]
[1762877632660,0.9263,3483.2,3482.9,1.19038116]
[1762877632852,0.9263,3483.2,3482.9,4.0615381]
[1762877633158,6.3,3483.8,3482.5,0.001]
[1762877633159,0.0047,3483.0,3482.8,0.49138116]
[1762877633353,0.0047,3483.0,3482.9,4.06155173]
[1762877634155,0.0047,3483.0,3482.9,1.19038116]
[1762877634361,0.4716,3483.4,3482.9,1.19038116]
[1762877634663,6.3,3483.8,3483.5,0.49138116]
[1762877634826,1.1337408,3484.1,3483.5,0.49138116]
[1762877634827,0.26563501,3483.7,3483.6,0.699]
[1762877635026,0.72053501,3483.7,3483.6,0.699]
[1762877635250,2.87065712,3483.6,3482.9,0.49138116]
[1762877635600,0.73725506,3483.5,3482.9,0.49138116]
[1762877635900,0.26565506,3483.4,3483.0,3.57007768]
[1762877636119,0.26565506,3483.4,3483.1,4.06133669]
[1762877636252,0.26565506,3483.4,3483.1,1.19038116]
[1762877636573,0.74115506,3483.4,3483.1,1.19038116]
[1762877636907,0.451,3483.2,3482.5,0.4521]
[1762877637193,0.451,3483.2,3483.0,0.49138116]
[1762877637350,0.451,3483.2,3483.1,1.19038116]
[1762877637748,4.00421447,3483.8,3483.2,2.87085802]
[1762877637965,0.002,3483.4,3483.3,0.49138116]
[1762877638249,0.451,3483.3,3483.1,4.06137213]
[1762877638455,0.451,3483.3,3483.1,1.19038116]
[1762877638752,0.451,3483.3,3483.1,0.699]
[1762877638948,0.451,3483.3,3483.1,4.06138455]
[1762877639150,0.451,3483.3,3483.2,3.36230444]
[1762877639350,0.002,3483.4,3483.3,0.49138116]
[1762877639987,0.26794806,3483.4,3483.3,0.49138116]
[1762877640191,0.26714806,3483.4,3483.3,3.36222202]
[1762877640390,0.0012,3483.4,3483.3,3.36222202]
[1762877640554,0.0012,3483.4,3483.1,0.699]
[1762877640949,0.0012,3483.4,3483.3,2.87084086]
[1762877641153,0.0012,3483.4,3483.3,3.83842202]
[1762877641391,0.0012,3483.4,3483.3,4.96009903]
[1762877642002,0.0012,3483.4,3483.3,5.65909903]
[1762877642491,0.0012,3483.4,3483.3,6.06460303]
[1762877643949,0.0012,3483.4,3483.3,7.19834383]
[1762877644552,0.0012,3483.4,3483.3,2.01716217]
[1762877644752,0.0012,3483.4,3483.3,4.53742202]
[1762877645002,0.0012,3483.4,3483.3,3.83842202]
[1762877645287,0.0012,3483.4,3483.3,4.06122202]
[1762877645653,0.0012,3483.4,3483.3,0.49138116]
[1762877645987,0.0012,3483.4,3483.3,0.699]
[1762877646176,0.0012,3483.4,3483.3,4.06122202]
[1762877646989,0.0012,3483.4,3483.3,0.699]
[1762877647288,0.0012,3483.4,3483.3,4.52364086]
[1762877647493,0.0012,3483.4,3483.3,5.75447913]
[1762877648162,0.0012,3483.4,3483.3,5.05547913]
[1762877648497,0.0012,3483.4,3483.3,3.36222202]
[1762877648667,0.0012,3483.4,3483.3,4.53742202]
[1762877648872,0.0012,3483.4,3483.3,5.01502202]
[1762877649092,0.0012,3483.4,3483.3,1.44518116]
[1762877649400,0.0012,3483.4,3483.3,5.01502202]
[1762877649885,0.0012,3483.4,3483.3,5.80361721]
[1762877650397,0.0012,3483.4,3483.3,6.20912121]
[1762877651001,0.0012,3483.4,3483.3,5.51012121]
[1762877651160,0.0012,3483.4,3483.3,6.20912121]
[1762877652073,0.0012,3483.4,3483.3,5.73152121]
[1762877652470,0.0012,3483.4,3483.3,5.73052121]
[1762877653069,0.0012,3483.4,3483.3,5.03252121]
[1762877653277,0.0012,3483.4,3483.3,5.32501721]
[1762877653478,0.0012,3483.4,3483.3,4.53642202]
[1762877654195,0.0012,3483.4,3483.3,3.83842202]
[1762877654394,0.4544,3483.4,3483.3,0.698]
[1762877654696,0.4544,3483.4,3483.3,1.18938116]
[1762877655004,0.4544,3483.4,3483.3,4.06022202]
[1762877655186,0.0012,3483.4,3483.3,4.06022202]
[1762877655392,0.0012,3483.4,3483.2,0.49138116]
[1762877655393,0.4544,3483.4,3483.2,0.49138116]
[1762877655601,0.4532,3483.2,3483.0,2.8710811]
[1762877655812,0.4532,3483.2,3483.1,0.49138116]
[1762877655987,0.0147,3483.0,3482.9,2.87217057]
[1762877656174,0.0147,3483.0,3482.9,4.06155173]
[1762877656375,0.0012,3483.4,3483.0,2.87108814]
[1762877656596,0.73534896,3483.3,3483.0,2.87108814]
[1762877656799,0.26674896,3483.2,3483.1,0.49138116]
[1762877657109,0.26674896,3483.2,3483.1,1.18938116]
[1762877657286,0.71994896,3483.2,3483.1,1.18938116]
[1762877657491,0.71994896,3483.2,3483.1,3.56900571]
[1762877657878,0.71994896,3483.2,3483.1,0.698]
[1762877658097,0.26674896,3483.2,3483.1,3.56900571]
[1762877658407,0.26674896,3483.2,3483.1,4.06038687]
[1762877658596,0.0012,3483.4,3483.3,2.87084086]
[1762877658799,0.26799063,3483.4,3483.3,3.36222202]
[1762877659177,0.26799063,3483.4,3483.3,0.49138116]
[1762877659803,0.72119063,3483.4,3483.3,0.49138116]
[1762877660204,0.72110298,3483.4,3483.3,0.49138116]
[1762877660796,0.923,3483.4,3483.1,0.49138116]
[1762877661020,0.0147,3483.2,3483.0,3.36238905]
[1762877661230,0.4488,3483.1,3482.9,2.87214509]
[1762877661518,0.019,3483.0,3482.9,0.49238116]
[1762877661831,0.019,3483.0,3482.9,0.001]
[1762877662183,0.0012,3483.4,3482.9,0.001]
[1762877662184,0.0012,3483.4,3482.9,0.699]
[1762877662384,0.0012,3483.4,3483.3,3.83842202]
[1762877662695,0.4544,3483.4,3483.3,0.698]
[1762877662908,0.4544,3483.4,3483.3,1.18938116]
[1762877663325,0.4544,3483.4,3483.3,4.06022202]
[1762877663626,0.4544,3483.4,3483.3,3.56884086]
[1762877663627,0.0012,3483.4,3483.3,3.56884086]
[1762877663838,0.0012,3483.4,3483.3,0.698]
[1762877663997,0.0012,3483.4,3483.3,1.18938116]
[1762877664198,0.0004,3483.4,3483.3,1.18938116]
[1762877664392,0.0004,3483.4,3483.3,3.56884086]
[1762877664634,0.0004,3483.4,3483.3,4.06022202]
[1762877664945,0.0004,3483.4,3483.3,0.698]
[1762877665533,0.4536,3483.4,3483.3,0.698]
[1762877665835,0.0004,3483.4,3483.3,4.06022202]
[1762877666129,0.0004,3483.4,3483.3,4.51892202]
[1762877666290,0.0004,3483.4,3483.3,5.30563706]
[1762877666490,0.0004,3483.4,3483.3,5.78293706]
[1762877666729,0.0004,3483.4,3483.3,6.18844106]
[1762877667229,0.0004,3483.4,3483.3,5.49044106]
[1762877667416,0.0004,3483.4,3483.3,6.18844106]
[1762877667815,0.0004,3483.4,3483.3,0.49138116]
[1762877668131,0.0004,3483.4,3483.3,0.698]
[1762877668132,0.4693,3483.4,3483.3,0.698]
[1762877671721,0.26773296,3483.4,3483.3,1.18938116]
[1762877672315,0.73663296,3483.4,3483.3,1.18938116]
[1762877672540,0.73663296,3483.4,3483.3,0.698]
[1762877672702,1.19883296,3483.4,3483.3,0.698]
[1762877673543,1.19883296,3483.4,3483.1,0.49138116]
[1762877673745,0.26741528,3483.3,3483.1,0.49138116]
[1762877674074,0.0004,3483.4,3483.2,0.698]
[1762877674202,0.26746165,3483.3,3483.2,0.698]
[1762877674906,0.26746165,3483.3,3483.2,3.56892328]
[1762877675141,0.26746165,3483.3,3483.2,4.06030444]
[1762877675529,0.26746165,3483.3,3483.2,4.99630444]
[1762877675732,0.26746165,3483.3,3483.2,5.78313762]
[1762877676121,0.26746165,3483.3,3483.2,2.21421434]
[1762877676341,0.26746165,3483.3,3483.2,4.99630444]
[1762877676658,0.26746165,3483.3,3483.2,1.64808116]
[1762877676950,0.26746165,3483.3,3483.2,4.51900444]
[1762877677359,0.26746165,3483.3,3483.2,4.99630444]
[1762877677515,0.26746165,3483.3,3483.2,4.06030444]
[1762877678426,0.26746165,3483.3,3483.2,4.51900444]
[1762877679019,0.26746165,3483.3,3483.2,1.64808116]
[1762877679531,0.26746165,3483.3,3483.2,4.51900444]
[1762877680467,0.26746165,3483.3,3483.2,3.82100444]
[1762877680621,0.26746165,3483.3,3483.2,4.51900444]
[1762877680819,0.26746165,3483.3,3483.2,0.49138116]
[1762877680820,0.73636165,3483.3,3483.2,0.49138116]
[1762877681019,1.19856165,3483.3,3483.2,0.698]
[1762877681462,1.19856165,3483.3,3482.9,0.001]
[1762877681628,0.72296165,3483.2,3483.0,0.698]
[1762877681967,0.72296165,3483.2,3483.0,4.0604693]
[1762877681968,0.26746165,3483.1,3483.0,4.0604693]
[1762877682165,0.73856165,3483.1,3483.0,4.0604693]
[1762877682372,0.73856165,3483.1,3483.0,0.697]
[1762877682521,0.26746165,3483.1,3483.0,4.0594693]
[1762877683473,0.26746165,3483.1,3483.0,3.56808814]
[1762877683636,0.26746165,3483.1,3483.0,3.3624693]
[1762877683965,0.26746165,3483.1,3483.0,9.81804599]
[1762877684267,0.73636165,3483.1,3483.0,2.45740328]
[1762877684432,0.26746165,3483.1,3483.0,1.18838116]
[1762877684628,0.26746165,3483.1,3483.0,4.0594693]
[1762877684834,0.73636165,3483.1,3483.0,4.0594693]
[1762877685234,0.73636165,3483.1,3483.0,3.3624693]
[1762877685451,0.73636165,3483.1,3482.9,0.001]
[1762877685452,1.19856165,3483.1,3482.9,0.001]
[1762877685653,0.73436165,3483.0,3482.9,0.001]
[1762877685861,0.73436165,3483.0,3482.9,0.698]
[1762877686063,0.27216165,3483.0,3482.9,0.698]
[1762877686377,0.73436165,3483.0,3482.9,0.698]
[1762877688177,0.73436165,3483.0,3482.9,0.001]
[1762877688476,3.60464979,3483.0,3482.9,0.001]
[1762877689460,0.73356165,3483.0,3482.9,0.001]
[1762877690356,3.60464979,3483.0,3482.9,0.001]
[1762877690850,0.73356165,3483.0,3482.9,0.001]
[1762877691620,0.27136165,3483.0,3482.9,0.001]
[1762877692251,0.27136165,3483.0,3482.9,3.36355173]
[1762877692449,0.27136165,3483.0,3482.9,0.49238116]
[1762877692784,0.27136165,3483.0,3482.9,0.001]
[1762877694184,0.26746165,3483.0,3482.9,4.36435035]
[1762877694371,0.26746165,3483.0,3482.9,4.85573151]
[1762877694578,0.26746165,3483.0,3482.9,0.698]
[1762877694883,0.26746165,3483.0,3482.9,3.56917057]
[1762877695050,0.26746165,3483.0,3482.9,4.06055173]
[1762877695580,0.73486165,3483.0,3482.9,4.06055173]
[1762877695787,0.26746165,3483.0,3482.9,4.06055173]
[1762877696080,0.26746165,3483.0,3482.9,0.49238116]
[1762877696282,0.26746165,3483.0,3482.9,4.06055173]
[1762877696485,0.26746165,3483.0,3482.9,3.36355173]
[1762877696693,0.26746165,3483.0,3482.9,4.06055173]
[1762877696899,0.71906165,3483.0,3482.9,4.06055173]
[1762877697064,0.71906165,3483.0,3482.9,2.87217057]
[1762877697393,0.71906165,3483.0,3482.9,3.56917057]
[1762877697796,0.71906165,3483.0,3482.9,4.06055173]
[1762877697998,0.71906165,3483.0,3482.9,0.698]
[1762877698197,0.71906165,3483.0,3482.9,4.06055173]
[1762877699004,0.71906165,3483.0,3482.9,4.52965173]
[1762877699005,0.26746165,3483.0,3482.9,4.52965173]
[1762877699174,0.26746165,3483.0,3482.9,1.18938116]
[1762877699380,0.71856165,3483.0,3482.9,0.698]
[1762877699599,0.71856165,3483.0,3482.9,4.06055173]
[1762877700770,0.26746165,3483.0,3482.9,4.52965173]
[1762877701624,0.0004,3483.4,3483.3,2.87084086]
[1762877701770,0.26853572,3483.4,3483.3,4.05922202]
[1762877702167,0.26853572,3483.4,3483.3,1.18838116]
[1762877702605,0.70073572,3483.4,3483.1,2.87099118]
[1762877702792,0.9297,3483.4,3483.3,0.697]
[1762877703105,0.26863663,3483.4,3483.3,0.697]
[1762877703620,0.26863663,3483.4,3483.3,3.56784086]
[1762877703821,0.26863663,3483.4,3483.3,4.72996277]
[1762877704026,0.26863663,3483.4,3483.3,5.71724393]
[1762877704273,0.26863663,3483.4,3483.3,2.35050307]
[1762877704558,0.69283663,3483.4,3483.3,0.697]
[1762877704720,1.18993663,3483.4,3483.3,0.697]
[1762877705166,1.18993663,3483.4,3483.2,0.49138116]
[1762877705322,0.9217,3483.4,3483.2,0.49138116]
[1762877705526,0.27333476,3483.3,3483.1,3.36237771]
[1762877705726,0.005,3483.3,3483.2,1.18738116]
[1762877705979,0.26844341,3483.3,3483.2,1.18738116]
[1762877706326,1.18974341,3483.3,3483.2,0.696]
[1762877706546,1.18974341,3483.3,3483.1,0.49138116]
[1762877706730,0.4971,3483.3,3483.2,0.696]
[1762877706931,0.76591158,3483.3,3483.2,0.696]
[1762877707159,0.26881158,3483.3,3483.2,0.4691]
[1762877707477,0.26881158,3483.3,3483.2,4.32730444]
[1762877707627,0.26881158,3483.3,3483.2,5.61431341]
[1762877708140,0.26881158,3483.3,3483.2,5.11841341]
[1762877708536,0.26881158,3483.3,3483.2,3.83140444]
[1762877709369,0.26881158,3483.3,3483.2,3.83592328]
[1762877709534,0.26881158,3483.3,3483.2,4.32730444]
[1762877710565,0.26881158,3483.3,3483.2,3.83140444]
[1762877711858,0.26881158,3483.3,3483.2,4.32730444]
[1762877712061,0.26881158,3483.3,3483.2,5.61431339]
[1762877712262,0.26801158,3483.3,3483.2,5.61431339]
[1762877713048,0.0004,3483.4,3483.3,3.36222202]
[1762877713268,0.0004,3483.4,3483.3,0.96048116]
[1762877713454,0.0004,3483.4,3483.3,0.49138116]
[1762877713859,0.0004,3483.4,3483.3,3.83132202]
[1762877714260,0.0004,3483.4,3483.3,0.96048116]
[1762877714460,0.9217,3483.4,3483.0,2.87102405]
[1762877714658,0.005,3483.3,3483.0,2.87101368]
[1762877714969,0.42,3483.1,3482.9,2.87216839]
[1762877715169,0.42,3483.1,3482.9,0.49238116]
[1762877715370,0.0084,3483.0,3482.9,0.49238116]
[1762877715969,0.0084,3483.0,3482.9,2.87217057]
[1762877716175,0.4978,3483.3,3482.9,2.87217057]
[1762877716353,0.4978,3483.3,3482.9,3.36355173]
[1762877716553,0.4249,3483.0,3482.9,3.36355173]
[1762877716855,0.4978,3483.3,3483.0,2.87108041]
[1762877717057,0.0004,3483.4,3483.0,2.87105281]
[1762877717376,0.4982,3483.4,3483.0,0.49138116]
[1762877717776,0.0004,3483.4,3482.9,0.001]
[1762877717977,0.0004,3483.4,3483.3,3.83132202]
[1762877718177,0.0004,3483.4,3483.3,4.52732202]
[1762877719394,0.0004,3483.4,3483.3,1.65648116]
[1762877719597,0.0004,3483.4,3483.3,9.99799401]
[1762877719760,0.0004,3483.4,3483.3,11.13173481]
[1762877719960,0.0004,3483.4,3483.3,12.64537551]
[1762877720585,0.0004,3483.4,3483.3,13.05087951]
[1762877721704,0.0004,3483.4,3483.3,12.64537551]
[1762877722400,0.0004,3483.4,3483.3,13.05087951]
[1762877725521,0.002,3483.8,3483.7,2.87051123]
[1762877725693,0.002,3483.8,3483.7,11.61183615]
[1762877725881,0.002,3483.8,3483.7,12.09853615]
[1762877726681,0.002,3484.0,3483.9,3.76723161]
[1762877726905,0.002,3484.0,3483.9,4.23403161]
[1762877727109,0.002,3484.0,3483.9,9.6955036]
[1762877727312,0.002,3484.0,3483.9,11.07900954]
[1762877728231,0.002,3484.0,3483.9,12.21275034]
[1762877730595,0.002,3484.0,3483.9,12.61614609]